Workbook

Sheet 按项目
A1: 2025年市农业农村局市级涉农资金（乡村振兴发展专项）预算分配方案（按项目）
A2: 2024年12月5 日 单位：万元
A3: 序号 | B3: 预算项目类别 | C3: 预算项目名称 | D3: 预算资金 | E3: 约束性任务 | F3: 金额 | G3: 指导性任务 | H3: 金额 | I3: 绩效目标 | J3: 备注
E4: 项目承担单位 | G4: 项目承担单位
A5: 合计 | D5: =D6+D35 -> 12,488.890 | F5: =F6+F35 -> 2,793.000 | H5: 9,695.890
A6: 一、硬性任务市级配套资金 | D6: =F6+H6 -> 8,255.395 | F6: =SUM(F7:F34) -> 859.000 | H6: =SUM(H7:H34) -> 7396.395
A7: 1 | B7: 市级涉农统筹整合资金（市级配套） | C7: 政策性农业保险市级补贴资金 | D7: 6,951.395 | G7: 惠州市农业农村局 | H7: 6951.395 | I7: 用于结算2023年第四季度和2024年前三季度政策性农业保险保费市级补贴，农业保险保障水平进一步提高。水稻、玉米、马铃薯承保率80%以上，生猪、家禽、蔬菜、岭南水果等保险承保率稳步提升，特色和创新品种逐步拓展。 | J7: 计财科
A13: 2 | C13: 离岗基层老兽医补助市级配套资金 | D13: 45.000 | G13: 惠城区农业农村和水利局 | H13: 27.000 | I13: 补贴及时足额发放至符合条件的离岗基层老兽医，符合条件的离岗基层老兽医100%发放补贴，资金使用合法合规，补助项目2025年度完成率100%。妥善解决离岗基层老兽医生活困难问题。群众满意度≥90%。 | J13: 兽医与屠宰管理科
G14: 惠阳区农业农村水利局 | H14: 10.000
G15: 大亚湾区社会事务管理局 | H15: 1.100
G16: 仲恺区农村工作局 | H16: 6.900
A17: 3 | C17: 高标准农田建设项目市级配套资金 | D17: 534.000 | E17: 惠城区农业农村和水利局 | F17: 80.000 | I17: 完成省下达我市的高标准农田5.34万亩建设任务。通过项目建设，有效改善项目区农田基础设施条件，提升耕地质量，提高粮食综合生产能力。 | J17: 农田科
E18: 惠阳区农业农村和水利局 | F18: 91.000
E19: 惠东县农业农村局 | F19: 203.000
E20: 博罗县农业农村局 | F20: 100.000
E21: 龙门县农业农村局 | F21: 50.000
E22: 仲恺区农村工作局 | F22: 10.000
A23: 4 | C23: 动物疫病防控体系建设市级补助资金 | D23: 400.000 | G23: 惠城区农业农村和水利局 | H23: 159.000 | I23: 据实清算2024年养殖环节无害化处理补助、2025年屠宰环节病害产品无害化处理补助及损失补助，不发生病死猪随意抛弃和病害生猪流入餐桌事件。有效降低动物疫情传播风险，不发生区域性重大动物疫情，重大动物疫情依法处置率100%。群众满意度≥90%。 | J23: 兽医与屠宰管理科
G24: 惠阳区农业农村水利局 | H24: 19.000
G25: 惠东县农业农村局 | H25: 69.000
G26: 博罗县农业农村局 | H26: 50.000
G27: 龙门县农业农村局 | H27: 22.000
G28: 大亚湾区社会事务管理局 | H28: 10.000
G29: 仲恺区农村工作局 | H29: 71.000
A30: 5 | C30: 扶持村级集体经济试点工作市级配套资金 | D30: 325.000 | E30: 惠城区农业农村和水利局 | F30: 40.000 | I30: 扶持村级集体经济发展村数≥65个；项目村集体经济收入明显增加；项目村基层党组织凝聚力有所增强；项目区农民满意度≥90%；项目区基层干部满意度≥90%。 | J30: 农经科
E31: 惠阳区农业农村和水利局 | F31: 30.000
E32: 惠东县农业农村局 | F32: 95.000
E33: 博罗县农业农村局 | F33: 90.000
E34: 龙门县农业农村局 | F34: 70.000
A35: 二、乡村振兴发展专项资金 | D35: =F35+H35 -> 4,233.495 | F35: =SUM(F36:F79) -> 1,934.000 | H35: =SUM(H36:H79) -> 2,299.495
A36: 6 | B36: 乡村振兴发展专项资金 | C36: 市级“菜篮子”工程建设项目 | D36: 300.000 | E36: 惠州市农业农村局 | F36: 20.000 | I36: 建设“菜篮子”监测体系。 | J36: 科教科
E37: 惠东县农业农村局 | F37: 140.000 | I37: 扶持建设市级“菜篮子”工程3个，提升“菜篮子”基地生产基础设施，提高产品质量安全水平，完善基地信息化水平，提升“菜篮子”产品稳产保供能力。
E38: 博罗县农业农村局 | F38: 93.330 | I38: 扶持建设市级“菜篮子”工程2个，提升“菜篮子”基地生产基础设施，提高产品质量安全水平，完善基地信息化水平，提升“菜篮子”产品稳产保供能力。
B39: 乡村振兴发展专项资金 | C39: 市级“菜篮子”工程建设项目 | E39: 龙门县农业农村局 | F39: 46.670 | I39: 扶持建设市级“菜篮子”工程1个，提升“菜篮子”基地生产基础设施，提高产品质量安全水平，完善基地信息化水平，提升“菜篮子”产品稳产保供能力。 | J39: 科教科
A40: 7 | C40: 扶持革命老区建设资金项目 | D40: 250.000 | G40: 惠城区农业农村和水利局 | H40: 14.000 | I40: 扶持各县区老区村的基础设施建设项目数 ≥10个，工程项目质量合格，工程项目完工率100%，资金支付率100%，项目群众满意度≥90%，逐步提升革命老区基础设施水平，红色文化影响力明显增强。 | J40: 协作促进科
G41: 惠阳区农业农村和水利局 | H41: 25.000
G42: 惠东县农业农村局 | H42: 64.000
G43: 博罗县农业农村局 | H43: 90.000
G44: 龙门县农业农村局 | H44: 46.000
G45: 大亚湾区社会事务管理局 | H45: 6.000
G46: 仲恺区农村工作局 | H46: 5.000
A47: 8 | C47: 光伏发电补贴项目 | D47: 16.520 | G47: 惠东县农业农村局 | H47: 6.280 | I47: 补贴发放及时完成率100%，项目按时完成率100%.脱贫村集体收入稳定增收，项目内群众满意度≥90。 | J47: 协作促进科
G48: 博罗县农业农村局 | H48: 8.700
G49: 龙门县农业农村局 | H49: 1.540
A50: 9 | C50: 市级发展粮食生产专项资金项目 | D50: 420.000 | E50: 惠州市农业农村局 | F50: 52.000 | I50: 建设粮食生产和撂荒耕地遥感监测。 | J50: 种植业科
E51: 惠州市农业科学研究所 | F51: 16.000 | I51: 建立1个撂荒耕地旱稻试种点。
E52: 惠城区农业农村和水利局 | F52: 24.000 | I52: 建设2个粮食生产示范点，建立1个市级粮食绿色高产示范片。
E53: 惠阳区农业农村和水利局 | F53: 46.000 | I53: 建设4个粮食生产示范点，建立1个市级粮食绿色高产示范片，建立1个撂荒耕地旱稻试种点。
E54: 惠东县农业农村局 | F54: 99.000 | I54: 建设15个粮食生产示范点，建立3个市级粮食绿色高产示范片。
E55: 博罗县农业农村局 | F55: 135.000 | I55: 承办1场全市春耕生产现场会，建设15个粮食生产示范点，建立3个市级粮食绿色高产示范片，建立1个撂荒耕地旱稻试种点。
E56: 龙门县农业农村局 | F56: 42.000 | I56: 建设2个粮食生产示范点，建立2个市级粮食绿色高产示范片。
E57: 仲恺高新技术开发区农村工作局 | F57: 6.000 | I57: 建设2个粮食生产示范点。
A58: 10 | C58: 市级稳定粮油生产奖补项目 | D58: 1,000.000 | E58: 惠城区农业农村和水利局 | F58: 125.000 | I58: 根据《惠州市市级稳定粮油生产奖补实施方案（试行）》（惠农〔2024〕116号），市财政每年安排资金预算1000万元，按照国家统计部门核定各县（区）上一年度完成的粮食播种面积占全市核定的粮食播种面积比重进行因素法奖补。此项资金为激励性事后奖补资金，即完成年度粮食和油料生产目标任务后于下一年度拨付资金。对非不可抗力因素导致未能完成上级下达粮食和油料生产目标任务的县（区），市财政不予奖补。因2024年粮食生产核定数据要到12月底才出，故暂按2023年粮食核定数进行分配，待2024年粮食生产核定数确定后再行微调。 | J58: 种植业科
E59: 惠阳区农业农村和水利局 | F59: 68.000
E60: 惠东县农业农村局 | F60: 333.000
E61: 博罗县农业农村局 | F61: 265.000
E62: 龙门县农业农村局 | F62: 184.000
E63: 大亚湾区社会事务管理局 | F63: 3.000
E64: 仲恺高新技术开发区农村工作局 | F64: 22.000
A65: 11 | B65: 乡村振兴发展专项资金 | C65: 现代农业产业“补改投”项目 | D65: 500.000 | G65: 惠州市农业农村局 | H65: 500.000 | I65: 通过盘活整合现代农业产业平台资源，创新市级财政资金使用方式，以“补改投”方式培育壮大一批农业产业平台企业（以下简称“平台企业”）。通过平台企业带动一批特色优势明显、市场竞争力强、联农带农效果好的农业企业发展，为推动我市现代农业产业高质量发展发挥示范引领作用。 | J65: 产业科
A66: 12 | C66: 农业龙头企业贷款贴息补贴资金 | D66: 500.000 | G66: 惠城区农业农村和水利局 | H66: 120.000 | I66: 通过贷款贴息，减轻农业龙头企业贷款利息负担，积极推动农业龙头企业发展，提升农业龙头企业质量；强化金融信贷服务，扶持壮大一批规模较大、带动能力较强的骨干龙头企业。 | J66: 产业科
G67: 惠阳区农业农村和水利局 | H67: 20.000
G68: 惠东县农业农村局 | H68: 70.000
G69: 博罗县农业农村局 | H69: 210.000
G70: 龙门县农业农村局 | H70: 50.000
G71: 仲恺区农村工作局 | H71: 30.000
A72: 13 | C72: 整村推进农村厕所革命提升项目 | D72: 214.000 | E72: 惠城区农业农村和水利局 | F72: 62.000 | I72: 推进73个行政村整村推进农村厕所革命提升任务，基本实现无害化卫生厕所全覆盖，因地制宜开展厕所粪污资源化利用，进一步完善农村厕所长效管护机制，项目区村民满意度≥95%。 | J72: 事业科
E73: 惠东县农业农村局 | F73: 86.000
E74: 博罗县农业农村局 | F74: 66.000
A75: 14 | C75: 农村村内道路（支路）建设补助项目 | D75: 852.975 | G75: 惠城区农业农村和水利局 | H75: 325.000 | I75: 完成170.595公里村内支路路面硬底化。 | J75: 事业科
G76: 惠东县农业农村局 | H76: 71.700
G77: 博罗县农业农村局 | H77: 393.775
G78: 龙门县农业农村局 | H78: 62.500
A79: 15 | C79: 第三次全国土壤普查项目 | D79: 180.000 | G79: 市农业农村局 | H79: 180.000 | I79: 完成市级第三次全国土壤普查成果编制任务，为更好地落实耕地保护责任，深入实施藏粮于地战略，保障国家粮食安全提供科学支撑。 | J79: 农田科

Sheet 表2分县区 (hidden)
A1: 2025年市农业农村局市级涉农统筹整合资金（乡村振兴发展专项）预算分配方案
A2: 2024年12月9日 单位：万元
B3: 硬性任务市级配套资金 | I3: 乡村振兴发展专项资金
A4: 县区名称 | B4: 合计 | C4: 小计 | D4: 1.政策性农业保险市级补贴资金 | E4: 2.离岗基层老兽医补助市级配套资金 | F4: 3.高标准农田建设市级配套资金 | G4: 4.动物疫病防控体系建设市级补助资金 | H4: 5.扶持村级集体经济试点工作市级配套资金 | I4: 小计 | J4: 1.市级“菜篮子”工程建设项目 | K4: 2.扶持革命老区建设资金项目 | L4: 3.光伏发电补贴项目 | M4: 4.市级发展粮食生产专项资金项目 | N4: 5.市级稳定粮油生产奖补项目 | O4: 6.现代农业产业“补改投”项目 | P4: 7.农业龙头企业贷款贴息补贴资金 | Q4: 8.整村推进农村厕所革命提升项目 | R4: 9.农村村内道路（支路）建设补助项目 | S4: 10.第三次全国土壤普查项目
A5: 合计 | B5: =C5+I5 -> 12488.890 | C5: =SUM(D5:H5) -> 8255.395 | D5: =SUM(D6:D14) -> 6951.395 | E5: =SUM(E6:E14) -> 45.000 | F5: 534.000 | G5: 400.000 | H5: 325.000 | I5: =SUM(J5:S5) -> 4233.495 | J5: 300.000 | K5: 250.000 | L5: 16.520 | M5: 420.000 | N5: 1000.000 | O5: 500.000 | P5: 500.000 | Q5: 214.000 | R5: 852.975 | S5: 180.000
A6: 惠州市农业农村局 | B6: =C6+I6 -> 7703.395 | C6: =SUM(D6:H6) -> 6951.395 | D6: 6951.395 | I6: =SUM(J6:S6) -> 752.000 | J6: 20.000 | M6: 52.000 | O6: 500.000 | S6: 180.000
A7: 惠州市农业科学研究所 | B7: 16.000 | I7: =SUM(J7:S7) -> 16.000 | M7: 16.000
A8: 惠城区农业农村和水利局 | B8: 976.000 | C8: =SUM(D8:H8) -> 306.000 | E8: 27.000 | F8: 80.000 | G8: 159.000 | H8: 40.000 | I8: 670.000 | K8: 14.000 | M8: 24.000 | N8: 125.000 | P8: 120.000 | Q8: 62.000 | R8: 325.000
A9: 惠阳区农业农村和水利局 | B9: 309.000 | C9: 150.000 | E9: 10.000 | F9: 91.000 | G9: 19.000 | H9: 30.000 | I9: 159.000 | K9: 25.000 | M9: 46.000 | N9: 68.000 | P9: 20.000
A10: 惠东县农业农村局 | B10: 1236.980 | C10: 367.000 | F10: 203.000 | G10: 69.000 | H10: 95.000 | I10: 869.980 | J10: 140.000 | K10: 64.000 | L10: 6.280 | M10: 99.000 | N10: 333.000 | P10: 70.000 | Q10: 86.000 | R10: 71.700
A11: 博罗县农业农村局 | B11: 1501.805 | C11: 240.000 | F11: 100.000 | G11: 50.000 | H11: 90.000 | I11: 1261.805 | J11: 93.330 | K11: 90.000 | L11: 8.700 | M11: 135.000 | N11: 265.000 | P11: 210.000 | Q11: 66.000 | R11: 393.775
A12: 龙门县农业农村局 | B12: 574.710 | C12: 142.000 | F12: 50.000 | G12: 22.000 | H12: 70.000 | I12: 432.710 | J12: 46.670 | K12: 46.000 | L12: 1.540 | M12: 42.000 | N12: 184.000 | P12: 50.000 | R12: 62.500
A13: 大亚湾开发区社会事务管理局 | B13: 20.100 | C13: 11.100 | E13: 1.100 | G13: 10.000 | I13: 9.000 | K13: 6.000 | N13: 3.000
A14: 仲恺高新技术开发区农村工作局 | B14: 150.900 | C14: 87.900 | E14: 6.900 | F14: 10.000 | G14: 71.000 | I14: 63.000 | K14: 5.000 | M14: 6.000 | N14: 22.000 | P14: 30.000

Sheet Sheet1 (hidden)
